fUSD/lending_fUSD_20250823
["ID","MTS","AMOUNT","RATE_DAILY","PERIOD"]
[380938014,1755909074916,-151.0,0.00013972,2]
[380938015,1755909074924,-400.0,0.00013972,2]
[380938016,1755909074934,-400.0,0.00013972,2]
[380938017,1755909074943,-151.0,0.00013972,2]
[380938018,1755909074953,-564.76,0.00013972,2]
[380938019,1755909074963,-400.0,0.00013972,2]
[380938020,1755909074974,-151.0,0.00013972,2]
[380938021,1755909074985,-151.0,0.00013972,2]
[380938022,1755909074995,-400.0,0.00013972,2]
[380938023,1755909075005,-151.0,0.00013972,2]
[380938024,1755909075016,-400.0,0.00013972,2]
[380938025,1755909075026,-151.0,0.00013972,2]
[380938026,1755909075038,-2143.12,0.00013972,2]
[380938027,1755909075049,-622.59,0.00013972,2]
[380938028,1755909075061,-400.0,0.00013972,2]
[380938029,1755909075071,-428.31,0.00013972,2]
[380938030,1755909075081,-400.0,0.00013972,2]
[380938031,1755909075092,-400.0,0.00013972,2]
[380938032,1755909075104,-400.0,0.00013972,2]
[380938033,1755909075113,-405.64,0.00013972,2]
[380938034,1755909075122,-400.0,0.00013972,2]
[380938035,1755909075133,-746.39,0.00013972,2]
[380938036,1755909075143,-400.0,0.00013972,2]
[380938037,1755909075152,-873.6,0.00013972,2]
[380938038,1755909075161,-506.14,0.00013972,2]
[380938039,1755909075169,-701.17,0.00013972,2]
[380938040,1755909075178,-464.14,0.00013972,2]
[380938041,1755909075189,-667.86,0.00013972,2]
[380938042,1755909075199,-400.0,0.00013972,2]
[380938043,1755909075208,-400.0,0.00013972,2]
[380938044,1755909075218,-400.0,0.00013972,2]
[380938045,1755909075227,-430.84,0.00013972,2]
[380938046,1755909075239,-400.0,0.00013972,2]
[380938047,1755909075248,-723.11,0.00013972,2]
[380938048,1755909075257,-400.0,0.00013972,2]
[380938049,1755909075268,-400.0,0.00013972,2]
[380938050,1755909075278,-400.0,0.00013972,2]
[380938051,1755909075288,-400.0,0.00013972,2]
[380938052,1755909075297,-467.67,0.00013972,2]
[380938053,1755909075306,-400.0,0.00013972,2]
[380938054,1755909075316,-462.24,0.00013972,2]
[380938055,1755909075326,-403.81,0.00013972,2]
[380938056,1755909075335,-400.0,0.00013972,2]
[380938057,1755909075345,-400.0,0.00013972,2]
[380938058,1755909075356,-400.0,0.00013972,2]
[380938059,1755909075365,-465.9,0.00013972,2]
[380938060,1755909075375,-400.0,0.00013972,2]
[380938061,1755909075385,-426.68,0.00013972,2]
[380938062,1755909075395,-422.36,0.00013972,2]
[380938063,1755909075404,-400.0,0.00013972,2]
[380938064,1755909075415,-550.31,0.00013972,2]
[380938065,1755909075424,-610.92,0.00013972,2]
[380938066,1755909075434,-400.0,0.00013972,2]
[380938067,1755909075444,-585.08,0.00013972,2]
[380938068,1755909075452,-400.0,0.00013972,2]
[380938069,1755909075462,-584.01,0.00013972,2]
[380938070,1755909075472,-400.0,0.00013972,2]
[380938071,1755909075482,-578.59,0.00013972,2]
[380938072,1755909075492,-400.0,0.00013972,2]
[380938073,1755909075501,-400.0,0.00013972,2]
[380938074,1755909075511,-400.0,0.00013972,2]
[380938075,1755909075521,-400.0,0.00013972,2]
[380938076,1755909075531,-849.52,0.00013972,2]
[380938077,1755909075540,-400.0,0.00013972,2]
[380938078,1755909075550,-566.15,0.00013972,2]
[380938079,1755909075560,-276.119364,0.00013972,2]
[380938080,1755909075570,-506.71,0.00013972,2]
[380938081,1755909075580,-400.0,0.00013972,2]
[380938082,1755909075589,-151.0,0.00013972,2]
[380938083,1755909075599,-151.0,0.00013972,2]
[380938084,1755909075609,-400.0,0.00013972,2]
[380938085,1755909075619,-400.0,0.00013972,2]
[380938086,1755909075628,-490.9,0.00013972,2]
[380938087,1755909075638,-400.0,0.00013972,2]
[380938088,1755909075648,-879.86,0.00013972,2]
[380938089,1755909075658,-151.0,0.00013972,2]
[380938090,1755909075667,-151.0,0.00013972,2]
[380938091,1755909075677,-400.0,0.00013972,2]
[380938092,1755909075687,-400.0,0.00013972,2]
[380938093,1755909075696,-3024.23,0.00013972,2]
[380938094,1755909075705,-400.0,0.00013972,2]
[380938095,1755909075715,-657.96,0.00013972,2]
[380938096,1755909075725,-782.19,0.00013972,2]
[380938097,1755909075736,-523.88,0.00013972,2]
[380938098,1755909075746,-578.04,0.00013972,2]
[380938099,1755909075756,-607.68,0.00013972,2]
[380938100,1755909075766,-1191.42,0.00013972,2]
[380938101,1755909075776,-484.15,0.00013972,2]
[380938102,1755909075786,-700.38,0.00013972,2]
[380938103,1755909075796,-400.0,0.00013972,2]
[380938104,1755909075806,-441.09149657,0.00013972,2]
[380938105,1755909075816,-776.73,0.00013972,2]
[380938106,1755909075826,-840.01,0.00013972,2]
[380938107,1755909075836,-400.0,0.00013972,2]
[380938108,1755909075846,-400.0,0.00013972,2]
[380938109,1755909075856,-483.84,0.00013972,2]
[380938110,1755909075866,-400.0,0.00013972,2]
[380938111,1755909075875,-400.0,0.00013972,2]
[380938112,1755909075885,-400.0,0.00013972,2]
[380938113,1755909075895,-631.44,0.00013972,2]
[380938114,1755909075905,-758.06,0.00013972,2]
[380938115,1755909075915,-400.0,0.00013972,2]
[380938116,1755909075924,-400.0,0.00013972,2]
[380938117,1755909075934,-400.0,0.00013972,2]
[380938118,1755909075944,-587.88,0.00013972,2]
[380938119,1755909075954,-400.0,0.00013972,2]
[380938120,1755909075964,-400.0,0.00013972,2]
[380938121,1755909075974,-400.0,0.00013972,2]
[380938122,1755909075985,-665.99,0.00013972,2]
[380938123,1755909075995,-522.42,0.00013972,2]
[380938124,1755909076005,-400.0,0.00013972,2]
[380938125,1755909076015,-242.36,0.00013972,2]
[380938126,1755909076024,-400.0,0.00013972,2]
[380938127,1755909076034,-400.0,0.00013972,2]
[380938128,1755909076046,-883.81,0.00013972,2]
[380938129,1755909076056,-400.0,0.00013972,2]
[380938130,1755909076066,-893.73,0.00013972,2]
[380938131,1755909076076,-400.0,0.00013972,2]
[380938132,1755909076086,-678.75,0.00013972,2]
[380938133,1755909076096,-400.0,0.00013972,2]
[380938134,1755909076106,-400.0,0.00013972,2]
[380938135,1755909076117,-400.0,0.00013972,2]
[380938136,1755909076129,-400.0,0.00013972,2]
[380938137,1755909076139,-400.0,0.00013972,2]
[380938138,1755909076149,-666.33,0.00013972,2]
[380938139,1755909076158,-400.0,0.00013972,2]
[380938140,1755909076168,-507.88,0.00013972,2]
[380938141,1755909076179,-400.0,0.00013972,2]
[380938142,1755909076191,-433.51,0.00013972,2]
[380938143,1755909076201,-400.0,0.00013972,2]
[380938144,1755909076211,-400.0,0.00013972,2]
[380938145,1755909076221,-761.73,0.00013972,2]
[380938146,1755909076232,-400.0,0.00013972,2]
[380938147,1755909076243,-842.68,0.00013972,2]
[380938148,1755909076254,-649.71,0.00013972,2]
[380938149,1755909076266,-467.86,0.00013972,2]
[380938150,1755909076277,-400.0,0.00013972,2]
[380938151,1755909076287,-1111.45,0.00013972,2]
[380938152,1755909076297,-1320.96,0.00013972,2]
[380938153,1755909076308,-697.79,0.00013972,2]
[380938154,1755909076318,-400.0,0.00013972,2]
[380938155,1755909076328,-400.0,0.00013972,2]
[380938156,1755909076338,-517.79,0.00013972,2]
[380938157,1755909076348,-400.0,0.00013972,2]
[380938158,1755909076358,-689.28,0.00013972,2]
[380938159,1755909076368,-400.0,0.00013972,2]
[380938160,1755909076378,-430.22,0.00013972,2]
[380938161,1755909076388,-538.01,0.00013972,2]
[380938162,1755909076398,-1038.23,0.00013972,2]
[380938163,1755909076408,-400.0,0.00013972,2]
[380938164,1755909076418,-543.95,0.00013972,2]
[380938165,1755909076428,-400.0,0.00013972,2]
[380938166,1755909076438,-758.69,0.00013972,2]
[380938167,1755909076449,-484.43,0.00013972,2]
[380938168,1755909076459,-1312.56,0.00013972,2]
[380938169,1755909076470,-400.0,0.00013972,2]
[380938170,1755909076480,-793.34,0.00013972,2]
[380938171,1755909076491,-402.89,0.00013972,2]
[380938172,1755909076501,-400.0,0.00013972,2]
[380938173,1755909076511,-400.0,0.00013972,2]
[380938174,1755909076521,-1961.29,0.00013972,2]
[380938175,1755909076531,-960.13,0.00013972,2]
[380938176,1755909076541,-400.0,0.00013972,2]
[380938177,1755909076551,-667.43,0.00013972,2]
[380938178,1755909076562,-535.22,0.00013972,2]
[380938179,1755909076573,-681.41,0.00013972,2]
[380938180,1755909076583,-400.0,0.00013972,2]
[380938181,1755909076593,-604.74,0.00013972,2]
[380938182,1755909076603,-400.0,0.00013972,2]
[380938183,1755909076613,-400.0,0.00013972,2]
[380938184,1755909076624,-768.43,0.00013972,2]
[380938185,1755909076634,-484.07,0.00013972,2]
[380938186,1755909076645,-739.78,0.00013972,2]
[380938187,1755909076656,-960.56,0.00013972,2]
[380938188,1755909076665,-839.48,0.00013972,2]
[380938189,1755909076675,-400.0,0.00013972,2]
[380938190,1755909076684,-411.22,0.00013972,2]
[380938191,1755909076694,-400.0,0.00013972,2]
[380938192,1755909076704,-425.81,0.00013972,2]
[380938193,1755909076714,-400.0,0.00013972,2]
[380938194,1755909076724,-400.0,0.00013972,2]
[380938195,1755909076734,-654.0,0.00013972,2]
[380938196,1755909076744,-933.74,0.00013972,2]
[380938197,1755909076754,-400.0,0.00013972,2]
[380938198,1755909076763,-652.65,0.00013972,2]
[380938199,1755909076775,-452.43,0.00013972,2]
[380938200,1755909076785,-884.24,0.00013972,2]
[380938201,1755909076795,-405.49,0.00013972,2]
[380938202,1755909076807,-520.86,0.00013972,2]
[380938203,1755909076816,-400.0,0.00013972,2]
[380938204,1755909076826,-559.08,0.00013972,2]
[380938205,1755909076836,-665.36,0.00013972,2]
[380938206,1755909076845,-429.94,0.00013972,2]
[380938207,1755909076856,-400.0,0.00013972,2]
[380938208,1755909076866,-400.0,0.00013972,2]
[380938209,1755909076877,-400.0,0.00013972,2]
[380938210,1755909076887,-382.58162158,0.00013972,2]
[380938211,1755909076897,-416.81,0.00013972,2]
[380938212,1755909076907,-400.0,0.00013972,2]
[380938213,1755909076917,-662.92,0.00013972,2]
[380938214,1755909076928,-400.0,0.00013972,2]
[380938215,1755909076938,-431.94,0.00013972,2]
[380938216,1755909076948,-400.0,0.00013972,2]
[380938217,1755909076958,-400.0,0.00013972,2]
[380938218,1755909076968,-400.0,0.00013972,2]
[380938219,1755909076978,-400.0,0.00013972,2]
[380938220,1755909076990,-400.0,0.00013972,2]
[380938221,1755909077000,-400.0,0.00013972,2]
[380938222,1755909077010,-327.01,0.00013972,2]
[380938223,1755909077020,-693.63,0.00013972,2]
[380938224,1755909077031,-400.0,0.00013972,2]
[380938225,1755909077041,-455.44,0.00013972,2]
[380938226,1755909077051,-674.56,0.00013972,2]
[380938227,1755909077061,-723.42,0.00013972,2]
[380938228,1755909077071,-987.34,0.00013972,2]
[380938229,1755909077081,-173.79247194,0.00013972,2]
[380938230,1755909077093,-400.0,0.00013972,2]
[380938231,1755909077103,-400.0,0.00013972,2]
[380938232,1755909077113,-652.2,0.00013972,2]
[380938233,1755909077123,-1304.91,0.00013972,2]
[380938234,1755909077133,-494.24,0.00013972,2]
[380938235,1755909077143,-400.0,0.00013972,2]
[380938236,1755909077153,-1043.71,0.00013972,2]
[380938237,1755909077163,-343.74,0.00013972,2]
[380938238,1755909077173,-521.95,0.00013972,2]
[380938239,1755909077183,-400.0,0.00013972,2]
[380938240,1755909077197,-400.0,0.00013972,2]
[380938241,1755909077207,-400.0,0.00013972,2]
[380938242,1755909077217,-410.66,0.00013972,2]
[380938243,1755909077227,-400.0,0.00013972,2]
[380938244,1755909077238,-400.0,0.00013972,2]
[380938245,1755909077248,-400.0,0.00013972,2]
[380938246,1755909077258,-659.86,0.00013972,2]
[380938247,1755909077269,-400.0,0.00013972,2]
[380938248,1755909077279,-1121.06,0.00013972,2]
[380938249,1755909077289,-912.7,0.00013972,2]
[380938250,1755909077299,-400.0,0.00013972,2]
[380938251,1755909077309,-400.0,0.00013972,2]
[380938252,1755909077318,-400.0,0.00013972,2]
[380938253,1755909077328,-400.0,0.00013972,2]
[380938254,1755909077338,-603.68,0.00013972,2]
[380938255,1755909077347,-792.16,0.00013972,2]
[380938256,1755909077357,-792.27,0.00013972,2]
[380938257,1755909077368,-609.49,0.00013972,2]
[380938258,1755909077378,-400.0,0.00013972,2]
[380938259,1755909077388,-400.0,0.00013972,2]
[380938260,1755909077398,-400.0,0.00013972,2]
[380938261,1755909077408,-400.0,0.00013972,2]
[380938262,1755909077418,-400.0,0.00013972,2]
[380938263,1755909077429,-400.0,0.00013972,2]
[380938264,1755909077439,-400.0,0.00013972,2]
[380938265,1755909077449,-303.59,0.00013972,2]
[380938266,1755909077460,-400.0,0.00013972,2]
[380938267,1755909077470,-400.0,0.00013972,2]
[380938268,1755909077481,-400.0,0.00013972,2]
[380938269,1755909077492,-400.0,0.00013972,2]
[380938270,1755909077502,-400.0,0.00013972,2]
[380938271,1755909077513,-426.25,0.00013972,2]
[380938272,1755909077523,-981.73,0.00013972,2]
[380938273,1755909077533,-400.0,0.00013972,2]
[380938274,1755909077543,-400.0,0.00013972,2]
[380938275,1755909077554,-466.29,0.00013972,2]
[380938276,1755909077564,-1058.6,0.00013972,2]
[380938277,1755909077574,-400.0,0.00013972,2]
[380938278,1755909077584,-400.0,0.00013972,2]
[380938279,1755909077594,-400.0,0.00013972,2]
[380938280,1755909077603,-1201.08,0.00013972,2]
[380938281,1755909077613,-400.0,0.00013972,2]
[380938282,1755909077623,-738.76,0.00013972,2]
[380938283,1755909077633,-825.5,0.00013972,2]
[380938284,1755909077642,-400.0,0.00013972,2]
[380938285,1755909077652,-400.0,0.00013972,2]
[380938286,1755909077662,-400.0,0.00013972,2]
[380938287,1755909077672,-958.1,0.00013972,2]
[380938288,1755909077681,-1111.07,0.00013972,2]
[380938289,1755909077691,-400.0,0.00013972,2]
[380938290,1755909077700,-1368.88,0.00013972,2]
[380938291,1755909077710,-509.27,0.00013972,2]
[380938292,1755909077720,-400.0,0.00013972,2]
[380938293,1755909077730,-468.64,0.00013972,2]
[380938294,1755909077743,-593.59,0.00013972,2]
[380938295,1755909077754,-400.0,0.00013972,2]
[380938296,1755909077764,-881.56,0.00013972,2]
[380938297,1755909077774,-750.95,0.00013972,2]
[380938298,1755909077784,-400.0,0.00013972,2]
[380938299,1755909077794,-400.0,0.00013972,2]
[380938300,1755909077804,-400.0,0.00013972,2]
[380938301,1755909077814,-343.78543429,0.00013972,2]
[380938302,1755909077824,-400.0,0.00013972,2]
[380938303,1755909077834,-400.0,0.00013972,2]
[380938304,1755909077843,-179.43879891,0.00013972,2]
[380938305,1755909077853,-728.88,0.00013972,2]
[380938306,1755909077863,-401.82,0.00013972,2]
[380938307,1755909077873,-706.36,0.00013972,2]
[380938308,1755909077884,-692.7,0.00013972,2]
[380938309,1755909077894,-557.47,0.00013972,2]
[380938310,1755909077904,-400.0,0.00013972,2]
[380938311,1755909077914,-400.0,0.00013972,2]
[380938312,1755909077925,-400.0,0.00013972,2]
[380938313,1755909077936,-400.0,0.00013972,2]
[380938314,1755909077945,-400.0,0.00013972,2]
[380938315,1755909077954,-952.67,0.00013972,2]
[380938316,1755909077964,-400.0,0.00013972,2]
[380938317,1755909077974,-400.0,0.00013972,2]
[380938318,1755909077985,-400.0,0.00013972,2]
[380938319,1755909077995,-400.0,0.00013972,2]
[380938320,1755909078005,-400.0,0.00013972,2]
[380938321,1755909078016,-400.0,0.00013972,2]
[380938322,1755909078026,-779.31,0.00013972,2]
[380938323,1755909078037,-1122.02,0.00013972,2]
[380938324,1755909078047,-400.0,0.00013972,2]
[380938325,1755909078057,-400.0,0.00013972,2]
[380938326,1755909078067,-400.0,0.00013972,2]
[380938327,1755909078077,-1582.88,0.00013972,2]
[380938328,1755909078088,-577.4,0.00013972,2]
[380938329,1755909078098,-564.14,0.00013972,2]
[380938330,1755909078108,-786.68,0.00013972,2]
[380938331,1755909078118,-400.0,0.00013972,2]
[380938332,1755909078128,-1198.24,0.00013972,2]
[380938333,1755909078144,-400.0,0.00013972,2]
[380938334,1755909078153,-400.0,0.00013972,2]
[380938335,1755909078163,-956.63,0.00013972,2]
[380938336,1755909078173,-673.4,0.00013972,2]
[380938337,1755909078184,-848.19,0.00013972,2]
[380938338,1755909078196,-400.0,0.00013972,2]
[380938339,1755909078207,-704.4,0.00013972,2]
[380938340,1755909078217,-447.14985646,0.00013972,2]
[380938341,1755909078228,-437.85,0.00013972,2]
[380938342,1755909078240,-548.8,0.00013972,2]
[380938343,1755909078250,-507.03,0.00013972,2]
[380938344,1755909078260,-437.95,0.00013972,2]
[380938345,1755909078272,-400.0,0.00013972,2]
[380938346,1755909078282,-1155.73,0.00013972,2]
[380938347,1755909078296,-556.41,0.00013972,2]
[380938348,1755909078306,-818.95,0.00013972,2]
[380938349,1755909078317,-400.0,0.00013972,2]
[380938350,1755909078327,-431.52,0.00013972,2]
[380938351,1755909078337,-850.86,0.00013972,2]
[380938352,1755909078348,-400.0,0.00013972,2]
[380938353,1755909078358,-400.0,0.00013972,2]
[380938354,1755909078369,-487.71,0.00013972,2]
[380938355,1755909078379,-400.0,0.00013972,2]
[380938356,1755909078389,-400.0,0.00013972,2]
[380938357,1755909078400,-838.37,0.00013972,2]
[380938358,1755909078410,-1159.8,0.00013972,2]
[380938359,1755909078421,-484.71,0.00013972,2]
[380938360,1755909078432,-506.13,0.00013972,2]
[380938361,1755909078443,-430.8,0.00013972,2]
[380938362,1755909078707,-749.94,0.00013972,2]
[380938363,1755909078761,-924.83,0.00013972,2]
[380938364,1755909078771,-1313.72,0.00013972,2]
[380938365,1755909078780,-400.0,0.00013972,2]
[380938366,1755909078790,-400.0,0.00013972,2]
[380938367,1755909078799,-400.0,0.00013972,2]
[380938368,1755909078808,-1444.09,0.00013972,2]
[380938369,1755909078818,-400.0,0.00013972,2]
[380938370,1755909078827,-400.0,0.00013972,2]
[380938371,1755909078836,-765.27,0.00013972,2]
[380938372,1755909078846,-400.0,0.00013972,2]
[380938373,1755909078856,-400.0,0.00013972,2]
[380938374,1755909078866,-400.0,0.00013972,2]
[380938375,1755909078875,-400.0,0.00013972,2]
[380938376,1755909078885,-6099.92,0.00013972,2]
[380938377,1755909078895,-400.0,0.00013972,2]
[380938378,1755909078904,-400.0,0.00013972,2]
[380938379,1755909078914,-444.7,0.00013972,2]
[380938380,1755909078924,-400.0,0.00013972,2]
[380938381,1755909078934,-411.26805562,0.00013972,2]
[380938382,1755909078943,-544.24,0.00013972,2]
[380938383,1755909078953,-400.0,0.00013972,2]
[380938384,1755909078963,-993.51,0.00013972,2]
[380938385,1755909078972,-400.0,0.00013972,2]
[380938386,1755909078982,-605.79,0.00013972,2]
[380938387,1755909078992,-400.0,0.00013972,2]
[380938388,1755909079002,-400.0,0.00013972,2]
[380938389,1755909079011,-405.835918,0.00013972,2]
[380938390,1755909079020,-830.79,0.00013972,2]
[380938391,1755909079030,-400.0,0.00013972,2]
[380938392,1755909079039,-514.4,0.00013972,2]
[380938393,1755909079048,-1071.62,0.00013972,2]
[380938394,1755909079058,-400.0,0.00013972,2]
[380938395,1755909079068,-662.65,0.00013972,2]
[380938396,1755909079078,-574.14,0.00013972,2]
[380938397,1755909079088,-477.51,0.00013972,2]
[380938398,1755909079098,-1245.75,0.00013972,2]
[380938399,1755909079107,-622.81,0.00013972,2]
[380938400,1755909079117,-400.0,0.00013972,2]
[380938401,1755909079126,-757.12,0.00013972,2]
[380938402,1755909079136,-516.75,0.00013972,2]
[380938403,1755909079145,-400.0,0.00013972,2]
[380938404,1755909079155,-400.0,0.00013972,2]
[380938405,1755909079165,-400.0,0.00013972,2]
[380938406,1755909079174,-1114.83,0.00013972,2]
[380938407,1755909079184,-468.67,0.00013972,2]
[380938408,1755909079197,-400.0,0.00013972,2]
[380938409,1755909079207,-655.72,0.00013972,2]
[380938410,1755909079216,-400.0,0.00013972,2]
[380938411,1755909079226,-490.46,0.00013972,2]
[380938412,1755909079238,-1549.38,0.00013972,2]
[380938413,1755909079247,-400.0,0.00013972,2]
[380938414,1755909079256,-1455.01,0.00013972,2]
[380938415,1755909079267,-400.0,0.00013972,2]
[380938416,1755909079277,-402.98,0.00013972,2]
[380938417,1755909079287,-400.0,0.00013972,2]
[380938418,1755909079296,-400.0,0.00013972,2]
[380938419,1755909079306,-553.89,0.00013972,2]
[380938420,1755909079316,-453.13427346,0.00013972,2]
[380938421,1755909079326,-400.0,0.00013972,2]
[380938422,1755909079335,-500.59,0.00013972,2]
[380938423,1755909079345,-400.0,0.00013972,2]
[380938424,1755909079355,-400.0,0.00013972,2]
[380938425,1755909079364,-958.06,0.00013972,2]
[380938426,1755909079374,-1000.0,0.00013972,2]
[380938427,1755909079383,-400.0,0.00013972,2]
[380938428,1755909079392,-400.0,0.00013972,2]
[380938429,1755909079402,-400.0,0.00013972,2]
[380938430,1755909079412,-400.0,0.00013972,2]
[380938431,1755909079421,-400.0,0.00013972,2]
[380938432,1755909079431,-400.0,0.00013972,2]
[380938433,1755909079441,-400.0,0.00013972,2]
[380938434,1755909079451,-765.26,0.00013972,2]
[380938435,1755909079460,-400.0,0.00013972,2]
[380938436,1755909079470,-400.0,0.00013972,2]
[380938437,1755909079478,-240.48,0.00013972,2]
[380938438,1755909079487,-400.0,0.00013972,2]
[380938439,1755909079497,-462.87,0.00013972,2]
[380938440,1755909079507,-281.06,0.00013972,2]
[380938441,1755909079516,-684.36,0.00013972,2]
[380938442,1755909079526,-1609.25,0.00013972,2]
[380938443,1755909079535,-509.39,0.00013972,2]
[380938444,1755909079545,-400.0,0.00013972,2]
[380938445,1755909079555,-400.0,0.00013972,2]
[380938446,1755909079564,-748.86,0.00013972,2]
[380938447,1755909079574,-400.0,0.00013972,2]
[380938448,1755909079584,-794.68,0.00013972,2]
[380938449,1755909079594,-632.68,0.00013972,2]
[380938450,1755909079604,-400.0,0.00013972,2]
[380938451,1755909079613,-1326.0,0.00013972,2]
[380938452,1755909079623,-754.86,0.00013972,2]
[380938453,1755909079633,-654.86,0.00013972,2]
[380938454,1755909079643,-400.0,0.00013972,2]
[380938455,1755909079653,-400.0,0.00013972,2]
[380938456,1755909079663,-400.0,0.00013972,2]
[380938457,1755909079672,-1273.55,0.00013972,2]
[380938458,1755909079683,-535.34,0.00013972,2]
[380938459,1755909079692,-1058.52,0.00013972,2]
[380938460,1755909079701,-584.52,0.00013972,2]
[380938461,1755909079710,-542.29,0.00013972,2]
[380938462,1755909079720,-400.0,0.00013972,2]
[380938463,1755909079730,-400.0,0.00013972,2]
[380938464,1755909079739,-1513.64,0.00013972,2]
[380938465,1755909079749,-167.73,0.00013972,2]
[380938466,1755909079758,-400.0,0.00013972,2]
[380938467,1755909079768,-400.0,0.00013972,2]
[380938468,1755909079778,-619.27,0.00013972,2]
[380938469,1755909079787,-400.0,0.00013972,2]
[380938470,1755909079796,-559.29,0.00013972,2]
[380938471,1755909079805,-634.92,0.00013972,2]
[380938472,1755909079815,-400.0,0.00013972,2]
[380938473,1755909079824,-400.0,0.00013972,2]
[380938474,1755909079834,-675.54,0.00013972,2]
[380938475,1755909079844,-1090.13,0.00013972,2]
[380938476,1755909079854,-440.2,0.00013972,2]
[380938477,1755909079863,-1041.84,0.00013972,2]
[380938478,1755909079872,-484.32,0.00013972,2]
[380938479,1755909079883,-400.0,0.00013972,2]
[380938480,1755909079893,-400.0,0.00013972,2]
[380938481,1755909079903,-1076.24,0.00013972,2]
[380938482,1755909079923,-1066.21,0.00013972,2]
[380938483,1755909079936,-1111.63,0.00013972,2]
[380938484,1755909079946,-1929.62,0.00013972,2]
[380938485,1755909079956,-558.61,0.00013972,2]
[380938486,1755909079965,-543.28,0.00013972,2]
[380938487,1755909079975,-409.53,0.00013972,2]
[380938488,1755909079985,-400.0,0.00013972,2]
[380938489,1755909079994,-453.31,0.00013972,2]
[380938490,1755909080004,-656.72,0.00013972,2]
[380938491,1755909080014,-400.0,0.00013972,2]
[380938492,1755909080025,-639.7,0.00013972,2]
[380938493,1755909080034,-691.77,0.00013972,2]
[380938494,1755909080044,-630.26,0.00013972,2]
[380938495,1755909080053,-984.96,0.00013972,2]
[380938496,1755909080065,-400.0,0.00013972,2]
[380938497,1755909080074,-400.0,0.00013972,2]
[380938498,1755909080083,-425.93,0.00013972,2]
[380938499,1755909080093,-484.18,0.00013972,2]
[380938500,1755909080102,-854.82,0.00013972,2]
[380938501,1755909080112,-400.0,0.00013972,2]
[380938502,1755909080122,-400.0,0.00013972,2]
[380938503,1755909080131,-263.18963006,0.00013972,2]
[380938504,1755909080141,-900.69,0.00013972,2]
[380938505,1755909080150,-400.0,0.00013972,2]
[380938506,1755909080159,-400.0,0.00013972,2]
[380938507,1755909080169,-400.0,0.00013972,2]
[380938508,1755909080178,-849.76,0.00013972,2]
[380938509,1755909080190,-440.43,0.00013972,2]
[380938510,1755909080201,-463.91,0.00013972,2]
[380938511,1755909080211,-400.0,0.00013972,2]
[380938512,1755909080220,-548.44,0.00013972,2]
[380938513,1755909080229,-633.7,0.00013972,2]